[Event "Serbian League Women 2024"]
[Site "Bajina Basta"]
[Date "2024.10.03"]
[Round "7.14"]
[White "Borisova, Ekaterina"]
[Black "Yildiz, Elif Zeren"]
[Result "1-0"]
[ECO "E06"]
[WhiteElo "2205"]
[BlackElo "1934"]
[Annotator "RC"]
[PlyCount "155"]
[EventDate "2024.09.26"]
[EventType "team-tourn"]
[EventCountry "SRB"]
[SourceTitle "playchess.com"]
[Source "ChessBase"]
[SourceQuality "1"]
[TimeControl "40/5400+30:1800+30"]

1. d4 {[%emt 0:00:02]} Nf6 {[%emt 0:00:07]} 2. c4 {[%emt 0:00:05]} e6 {[%emt 0:00:05]} 3. g3 {[%emt 0:00:03]} d5 {[%emt 0:00:07]} 4. Bg2 {[%emt 0:00:16]} Be7 {[%emt 0:00:06]} 5. Nf3 {[%emt 0:00:06]} O-O {[%emt 0:00:06]} 6. Qc2 {[%emt 0:00:02]} dxc4 {[%emt 0:05:44]} 7. Qxc4 {[%emt 0:00:08]} a6 {[%emt 0:01:39]} 8. Ne5 {[%emt 0:00:35]} b5 {[%emt 0:04:25]} 9. Qc2 {[%emt 0:19:44]} Nd5 {[%emt 0:00:28]} 10. O-O {[%emt 0:01:01]} Bb7 {[%emt 0:01:11]} 11. Bd2 {[%emt 0:01:51]} Bf6 {[%emt 0:27:19]} 12. Nf3 {[%emt 0:06:37]} Nd7 {[%emt 0:55:13]} 13. Ba5 {[%emt 0:04:41]} N5b6 {[%emt 0:00:00]} 14. Nbd2 {[%emt 0:03:35]} Rc8 {[%emt 0:00:00]} 15. Ng5 {[%emt 0:04:03]} Bxg5 {[%emt 0:00:00]} 16. Bxb7 {[%emt 0:00:06]} Rb8 {[%emt 0:00:00]} 17. Bg2 {[%emt 0:00:18]} Be7 {[%emt 0:00:00]} 18. Rfd1 {[%emt 0:06:05]} Bd6 {[%emt 0:00:00]} 19. Ne4 {[%emt 0:05:39]} Qe7 {[%emt 0:00:00]} 20. Rac1 {[%emt 0:00:31]} Rfc8 {[%emt 0:00:00]} 21. Nc5 {[%emt 0:07:01]} Nc4 {[%emt 0:00:00]} 22. Be1 {[%emt 0:04:08]} Nxc5 {[%emt 0:00:00]} 23. dxc5 {[%emt 0:00:12]} Be5 {[%emt 0:00:00]} 24. b3 {[%emt 0:04:50]} Na3 {[%emt 0:00:00]} 25. Qd2 {[%emt 0:12:44]} b4 {[%emt 0:00:00]} 26. Qd7 {[%emt 0:00:20]} Qxd7 {[%emt 0:00:00]} 27. Rxd7 {[%emt 0:00:05]} a5 {[%emt 0:00:00]} 28. f4 {[%emt 0:05:39]} Bb2 {[%emt 0:00:08]} 29. Rcd1 {[%emt 0:00:03]} g6 {[%emt 0:00:32]} 30. Bc6 {[%emt 0:02:19]} Bf6 {[%emt 0:02:27]} 31. e4 {[%emt 0:00:56]} Kf8 {[%emt 0:00:24]} 32. Bf2 {[%emt 0:02:52]} Rd8 {[%emt 0:02:33]} 33. Kf1 {[%emt 0:02:57]} Be7 {[%emt 0:02:02]} 34. Ke2 {[%emt 0:02:07]} Rdc8 {[%emt 0:01:14]} 35. Kd3 {[%emt 0:01:04]} Rd8 {[%emt 0:00:32]} 36. Ke2 {[%emt 0:00:22]} Rdc8 {[%emt 0:00:01]} 37. e5 {[%emt 0:03:17]} h5 {[%emt 0:00:31]} 38. h3 {[%emt 0:00:43]} Nb5 {[%emt 0:00:49]} 39. R1d2 {[%emt 0:01:01]} Nc3+ {[%emt 0:00:38]} 40. Kd3 {[%emt 0:00:53]} Nb1 {[%emt 0:00:28]} 41. Rb2 {[%emt 0:30:35]} Nc3 {[%emt 0:30:08]} 42. Kc4 {[%emt 0:00:57]} f5 {[%emt 0:00:00]} 43. Bd4 {[%emt 0:00:00]} Kf7 {[%emt 0:00:00]} 44. Bxc3 {[%emt 0:00:00]} bxc3 {[%emt 0:00:00]} 45. Rc2 {[%emt 0:00:00]} h4 {[%emt 0:00:00]} 46. a3 {[%emt 0:00:00]} Rd8 {[%emt 0:00:00]} 47. Rxd8 {[%emt 0:00:00]} Rxd8 {[%emt 0:00:00]} 48. gxh4 {[%emt 0:00:00]} Bxh4 {[%emt 0:00:00]} 49. Rxc3 {[%emt 0:00:00]} Be1 {[%emt 0:00:00]} 50. Rf3 {[%emt 0:00:00]} Rd1 {[%emt 0:00:58]} 51. Kb5 {[%emt 0:00:05]} Rd4 {[%emt 0:01:40]} 52. Bb7 {[%emt 0:00:42]} Bd2 {[%emt 0:01:25]} 53. Kc6 {[%emt 0:00:38]} Rd5 {[%emt 0:00:48]} 54. Ba6 {[%emt 0:00:48]} g5 {[%emt 0:02:12]} 55. Bc4 {[%emt 0:00:25]} Rd4 {[%emt 0:00:54]} 56. fxg5 {[%emt 0:00:25]} Bf4 {[%emt 0:00:44]} 57. a4 {[%emt 0:03:36]} Kg6 {[%emt 0:00:51]} 58. Rxf4 {[%emt 0:00:47]} Rxf4 {[%emt 0:00:05]} 59. Kxc7 {[%emt 0:00:03]} Rxc4 {[%emt 0:00:53]} 60. bxc4 {[%emt 0:00:47]} f4 {[%emt 0:00:01]} 61. c6 {[%emt 0:00:43]} f3 {[%emt 0:00:02]} 62. Kd6 {[%emt 0:00:32]} f2 {[%emt 0:00:10]} 63. c7 {[%emt 0:00:03]} f1=Q {[%emt 0:00:04]} 64. c8=Q {[%emt 0:00:05]} Qd3+ {[%emt 0:00:08]} 65. Ke7 {[%emt 0:00:18]} Qa3+ {[%emt 0:00:57]} 66. c5 {[%emt 0:00:34]} Kxg5 {[%emt 0:00:05]} 67. Qg8+ {[%emt 0:01:05]} Kf4 {[%emt 0:00:13]} 68. Qg4+ {[%emt 0:00:06]} Kxe5 {[%emt 0:00:14]} 69. Qxe6+ {[%emt 0:00:03]} Kd4 {[%emt 0:00:38]} 70. Qd6+ {[%emt 0:00:05]} Kc4 {[%emt 0:01:43]} 71. c6 {[%emt 0:00:12]} Qc3 {[%emt 0:00:12]} 72. c7 {[%emt 0:01:27]} Qg7+ {[%emt 0:00:13]} 73. Kd8 {[%emt 0:00:30]} Qg8+ {[%emt 0:00:23]} 74. Kd7 {[%emt 0:00:24]} Qf7+ {[%emt 0:00:31]} 75. Kc6 {[%emt 0:00:57]} Qf3+ {[%emt 0:00:27]} 76. Kb6 {[%emt 0:00:07]} Qb3+ {[%emt 0:00:50]} 77. Ka7 {[%emt 0:00:15]} Qe3+ {[%emt 0:00:22]} 78. Kb7 {[%emt 0:00:25]} 1-0

[Event "Serbian League Women 2024"]
[Site "Bajina Basta"]
[Date "2024.10.03"]
[Round "7.15"]
[White "Vujcic, Milena"]
[Black "Mihailova, Alina"]
[Result "1/2-1/2"]
[ECO "C70"]
[WhiteElo "2076"]
[BlackElo "1969"]
[Annotator "NA RC"]
[PlyCount "149"]
[EventDate "2024.09.26"]
[EventType "team-tourn"]
[EventCountry "SRB"]
[SourceTitle "playchess.com"]
[Source "ChessBase"]
[SourceQuality "1"]
[TimeControl "40/5400+30:1800+30"]

1. e4 {[%emt 0:00:03]} e5 {[%emt 0:00:11]} 2. Nf3 {[%emt 0:00:04]} Nc6 {[%emt 0:00:06]} 3. Bb5 {[%emt 0:00:03]} a6 {[%emt 0:00:06]} 4. Ba4 {[%emt 0:00:05]} Bc5 {[%emt 0:00:09]} 5. O-O {[%emt 0:00:45]} d6 {[%emt 0:00:13]} 6. c3 {[%emt 0:01:05]} Ba7 {[%emt 0:00:06]} 7. h3 {[%emt 0:00:45]} Nge7 {[%emt 0:00:18]} 8. d4 {[%emt 0:00:38]} O-O {[%emt 0:02:17]} 9. Bg5 {[%emt 0:03:48]} f6 {[%emt 0:01:01]} 10. Bb3+ {[%emt 0:00:48]} Kh8 {[%emt 0:00:10]} 11. Bh4 {[%emt 0:03:01]} Qe8 {[%emt 0:08:03]} 12. Bg3 {[%emt 0:04:06]} f5 {[%emt 0:23:00]} 13. Bd5 {[%emt 0:21:13]} f4 {[%emt 0:28:40]} 14. Bh2 {[%emt 0:03:59]} Qh5 {[%emt 0:04:48]} 15. Kh1 {[%emt 0:05:58]} g5 {[%emt 0:06:12]} 16. dxe5 {[%emt 0:08:22]} dxe5 {[%emt 0:00:28]} 17. Nbd2 {[%emt 0:04:41]} Rf6 {[%emt 0:08:12]} 18. Ng1 {[%emt 0:06:19]} g4 {[%emt 0:02:18]} 19. Bc4 {[%emt 0:03:05]} Qg6 {[%emt 0:05:21]} 20. hxg4 {[%emt 0:02:52]} Bxg4 {[%emt 0:00:03]} 21. Be2 {[%emt 0:00:07]} Bxe2 {[%emt 0:03:09]} 22. Qxe2 {[%emt 0:00:06]} Rg8 {[%emt 0:00:47]} 23. g3 {[%emt 0:03:09]} Bxf2 {[%emt 0:05:33]} 24. Rxf2 {[%emt 0:01:05]} fxg3 {[%emt 0:00:06]} 25. Rg2 {[%emt 0:01:02]} Qh6 {[%emt 0:00:13]} 26. Rf1 {[%emt 0:02:24]} Rf4 {[%emt 0:00:52]} 27. Rxf4 {[%emt 0:02:34]} exf4 {[%emt 0:00:07]} 28. Ngf3 {[%emt 0:00:24]} Ng6 {[%emt 0:00:53]} 29. e5 {[%emt 0:03:58]} Re8 {[%emt 0:00:58]} 30. Ne4 {[%emt 0:01:33]} Ncxe5 {[%emt 0:00:30]} 31. Nxg3 {[%emt 0:07:33]} fxg3 {[%emt 0:00:02]} 32. Rxg3 {[%emt 0:00:05]} Re7 {[%emt 0:00:15]} 33. Ng5 {[%emt 0:01:38]} Qh4 {[%emt 0:00:41]} 34. Qe3 {[%emt 0:05:57]} Qxh2+ {[%emt 0:00:54]} 35. Kxh2 {[%emt 0:00:12]} Ng4+ {[%emt 0:00:05]} 36. Rxg4 {[%emt 0:00:44]} Rxe3 {[%emt 0:00:02]} 37. Rb4 {[%emt 0:00:38]} b6 {[%emt 0:00:56]} 38. Kg2 {[%emt 0:00:27]} Kg7 {[%emt 0:00:19]} 39. Kf2 {[%emt 0:00:05]} Re5 {[%emt 0:00:20]} 40. Nf3 {[%emt 0:00:09]} Rf5 {[%emt 0:01:06]} 41. Ke3 {[%emt 0:30:14]} Ne7 {[%emt 0:01:47]} 42. Rc4 {[%emt 0:00:00]} c6 {[%emt 0:02:46]} 43. Ra4 {[%emt 0:00:00]} a5 {[%emt 0:00:09]} 44. Rg4+ {[%emt 0:00:00]} Kf6 {[%emt 0:00:37]} 45. c4 {[%emt 0:00:00]} Rh5 {[%emt 0:03:56]} 46. Rf4+ {[%emt 0:00:00]} Rf5 {[%emt 0:02:50]} 47. Rd4 {[%emt 0:00:00]} Ke6 {[%emt 0:00:51]} 48. Rd8 {[%emt 0:00:00]} Rc5 {[%emt 0:10:52]} 49. Nd4+ {[%emt 0:00:00]} Kf7 {[%emt 0:01:09]} 50. b3 {[%emt 0:00:00]} b5 {[%emt 0:04:03]} 51. cxb5 {[%emt 0:00:00]} cxb5 {[%emt 0:00:02]} 52. Ke4 {[%emt 0:00:00]} b4 {[%emt 0:01:01]} 53. Rh8 {[%emt 0:00:00]} Kg6 {[%emt 0:01:09]} 54. Nf3 {[%emt 0:00:00]} Rc2 {[%emt 0:01:11]} 55. Re8 {[%emt 0:00:00]} Kf7 {[%emt 0:00:26]} 56. Rh8 {[%emt 0:00:00]} Kg7 {[%emt 0:00:06]} 57. Re8 {[%emt 0:00:00]} Ng6 {[%emt 0:00:18]} 58. Ra8 {[%emt 0:00:47]} Rxa2 {[%emt 0:00:34]} 59. Ra7+ {[%emt 0:00:49]} Kg8 {[%emt 0:02:46]} 60. Nd4 {[%emt 0:02:47]} h5 {[%emt 0:02:39]} 61. Kf5 {[%emt 0:00:40]} Nf8 {[%emt 0:01:15]} 62. Kf6 {[%emt 0:00:55]} Nh7+ {[%emt 0:00:50]} 63. Kg6 {[%emt 0:01:16]} Rg2+ {[%emt 0:00:06]} 64. Kxh5 {[%emt 0:01:33]} Nf6+ {[%emt 0:00:14]} 65. Kh6 {[%emt 0:00:07]} Ng4+ {[%emt 0:00:58]} 66. Kg6 {[%emt 0:00:51]} Ne3+ {[%emt 0:00:22]} 67. Kf6 {[%emt 0:00:53]} Rf2+ {[%emt 0:00:30]} 68. Ke6 {[%emt 0:00:33]} Nc2 {[%emt 0:00:17]} 69. Nxc2 {[%emt 0:01:14]} Rxc2 {[%emt 0:00:02]} 70. Rxa5 {[%emt 0:00:07]} Rc3 {[%emt 0:00:05]} 71. Rb5 {[%emt 0:00:05]} Rxb3 {[%emt 0:00:03]} 72. Kd5 {[%emt 0:00:06]} Rb1 {[%emt 0:00:04]} 73. Kc4 {[%emt 0:00:04]} b3 {[%emt 0:00:02]} 74. Rxb3 {[%emt 0:00:04]} Rxb3 {[%emt 0:00:03]} 75. Kxb3 {[%emt 0:00:04]} 1/2-1/2

[Event "Serbian League Women 2024"]
[Site "Bajina Basta"]
[Date "2024.10.03"]
[Round "7.16"]
[White "Stankovic, Andrea"]
[Black "Petrovic, Marija"]
[Result "1/2-1/2"]
[ECO "C40"]
[WhiteElo "1856"]
[BlackElo "1898"]
[Annotator "NA RC"]
[PlyCount "138"]
[EventDate "2024.09.26"]
[EventType "team-tourn"]
[EventCountry "SRB"]
[SourceTitle "playchess.com"]
[Source "ChessBase"]
[SourceQuality "1"]
[TimeControl "40/5400+30:1800+30"]

1. e4 {[%emt 0:00:02]} e5 {[%emt 0:00:49]} 2. Nf3 {[%emt 0:00:05]} Qe7 {[%emt 0:00:19]} 3. Bc4 {[%emt 0:00:08]} d6 {[%emt 0:00:04]} 4. O-O {[%emt 0:00:10]} h6 {[%emt 0:00:05]} 5. d4 {[%emt 0:00:06]} Nf6 {[%emt 0:00:11]} 6. Nc3 {[%emt 0:00:22]} c6 {[%emt 0:00:07]} 7. h3 {[%emt 0:00:44]} Qc7 {[%emt 0:00:29]} 8. a4 {[%emt 0:02:27]} a5 {[%emt 0:00:10]} 9. Qe2 {[%emt 0:05:53]} Na6 {[%emt 0:00:08]} 10. Be3 {[%emt 0:03:40]} Be7 {[%emt 0:00:23]} 11. Nh2 {[%emt 0:06:57]} g5 {[%emt 0:02:09]} 12. Rad1 {[%emt 0:04:38]} Rg8 {[%emt 0:03:34]} 13. Rd2 {[%emt 0:19:54]} h5 {[%emt 0:07:01]} 14. f3 {[%emt 0:08:29]} Bd7 {[%emt 0:04:51]} 15. Qf2 {[%emt 0:05:41]} Qc8 {[%emt 0:04:39]} 16. Rfd1 {[%emt 0:09:24]} Be6 {[%emt 0:12:08]} 17. d5 {[%emt 0:07:23]} Bd7 {[%emt 0:00:09]} 18. g4 {[%emt 0:03:56]} Nb4 {[%emt 0:00:51]} 19. b3 {[%emt 0:04:50]} cxd5 {[%emt 0:05:06]} 20. Nxd5 {[%emt 0:04:55]} Nbxd5 {[%emt 0:00:13]} 21. Bxd5 {[%emt 0:00:08]} Bc6 {[%emt 0:03:41]} 22. c4 {[%emt 0:00:12]} Bd7 {[%emt 0:03:21]} 23. Nf1 {[%emt 0:01:26]} Rh8 {[%emt 0:02:49]} 24. Ng3 {[%emt 0:01:48]} hxg4 {[%emt 0:00:45]} 25. hxg4 {[%emt 0:00:07]} Bxg4 {[%emt 0:03:37]} 26. fxg4 {[%emt 0:00:05]} Qxg4 {[%emt 0:00:12]} 27. Qg2 {[%emt 0:01:37]} Rh4 {[%emt 0:20:43]} 28. Nf5 {[%emt 0:03:58]} Nxd5 {[%emt 0:02:31]} 29. Nxh4 {[%emt 0:02:57]} Nxe3 {[%emt 0:00:21]} 30. Qxg4 {[%emt 0:00:07]} Nxg4 {[%emt 0:00:09]} 31. Nf5 {[%emt 0:00:05]} Ra6 {[%emt 0:01:10]} 32. Nxd6+ {[%emt 0:02:16]} Kf8 {[%emt 0:00:11]} 33. c5 {[%emt 0:00:44]} Nf6 {[%emt 0:02:16]} 34. Re2 {[%emt 0:00:47]} Nd7 {[%emt 0:02:09]} 35. Nxb7 {[%emt 0:00:54]} Nxc5 {[%emt 0:00:18]} 36. Nxc5 {[%emt 0:00:12]} Bxc5+ {[%emt 0:00:08]} 37. Kg2 {[%emt 0:00:05]} Rb6 {[%emt 0:00:11]} 38. Rd3 {[%emt 0:00:09]} Kg7 {[%emt 0:00:33]} 39. Kg3 {[%emt 0:00:17]} Kg6 {[%emt 0:00:30]} 40. Kg4 {[%emt 0:00:38]} Bd4 {[%emt 0:00:21]} 41. Rf3 {[%emt 0:31:05]} Rc6 {[%emt 0:30:33]} 42. Rf5 {[%emt 0:00:00]} f6 {[%emt 0:00:00]} 43. Re1 {[%emt 0:00:00]} Bb6 {[%emt 0:00:00]} 44. Rd1 {[%emt 0:00:00]} Bd4 {[%emt 0:00:00]} 45. Rh1 {[%emt 0:00:00]} Rc2 {[%emt 0:00:00]} 46. Rhf1 {[%emt 0:00:00]} Rc6 {[%emt 0:00:00]} 47. R5f3 {[%emt 0:00:00]} Bb6 {[%emt 0:00:00]} 48. Rb1 {[%emt 0:00:00]} Rc2 {[%emt 0:00:00]} 49. Rbf1 {[%emt 0:00:00]} Rc6 {[%emt 0:00:00]} 50. Rh1 {[%emt 0:00:00]} Rd6 {[%emt 0:00:00]} 51. Rfh3 {[%emt 0:00:00]} Rd2 {[%emt 0:00:00]} 52. Rh6+ {[%emt 0:00:00]} Kf7 {[%emt 0:00:00]} 53. Rxf6+ {[%emt 0:00:00]} Kxf6 {[%emt 0:00:00]} 54. Rh6+ {[%emt 0:00:00]} Ke7 {[%emt 0:00:00]} 55. Rxb6 {[%emt 0:00:00]} Rf2 {[%emt 0:00:00]} 56. Kxg5 {[%emt 0:00:00]} Rf4 {[%emt 0:00:00]} 57. Rb5 {[%emt 0:00:00]} Ke6 {[%emt 0:00:00]} 58. Rxa5 {[%emt 0:00:00]} Rxe4 {[%emt 0:00:00]} 59. Rb5 {[%emt 0:00:00]} Re1 {[%emt 0:00:00]} 60. Kg4 {[%emt 0:00:00]} Rf1 {[%emt 0:00:00]} 61. a5 {[%emt 0:07:07]} e4 {[%emt 0:00:00]} 62. Rb4 {[%emt 0:01:20]} Kd5 {[%emt 0:00:00]} 63. Ra4 {[%emt 0:02:30]} e3 {[%emt 0:00:00]} 64. a6 {[%emt 0:00:34]} e2 {[%emt 0:00:00]} 65. a7 {[%emt 0:00:21]} Rf8 {[%emt 0:00:00]} 66. Ra1 {[%emt 0:00:11]} Ra8 {[%emt 0:00:00]} 67. Kf3 {[%emt 0:00:27]} Rxa7 {[%emt 0:00:00]} 68. Re1 {[%emt 0:00:40]} Rb7 {[%emt 0:00:00]} 69. Rxe2 {[%emt 0:00:10]} Rxb3+ {[%emt 0:00:00]} 1/2-1/2

[Event "Serbian League Women 2024"]
[Site "Bajina Basta"]
[Date "2024.10.03"]
[Round "7.17"]
[White "Badelka, Olga"]
[Black "Maltsevskaya, Aleksandra"]
[Result "0-1"]
[ECO "D55"]
[WhiteElo "2430"]
[BlackElo "2404"]
[Annotator "TA"]
[PlyCount "84"]
[EventDate "2024.09.26"]
[EventType "team-tourn"]
[EventCountry "SRB"]
[SourceTitle "playchess.com"]
[Source "ChessBase"]
[SourceQuality "1"]
[TimeControl "40/5400+30:1800+30"]

{[%evp 20,84,53,24,62,44,38,7,2,12,37,61,37,41,58,46,62,-19,15,-25,-36,-47,-13,-124,-107,-133,-136,-110,-110,-123,-117,-135,-119,-125,-121,-109,-110,-137,-122,-129,-96,-102,-92,-104,-112,-114,-126,-322,-270,-211,-224,-477,-504,-504,-408,-662,-670,-656,-634,-633,-622,-29996,-29997,-29997,-29998,-29998,-29999]} 1. d4 {[%emt 0:00:03]} d5 {[%emt 0:00:06]} 2. c4 {[%emt 0:00:05]} e6 {[%emt 0:00:05]} 3. Nc3 {[%emt 0:00:05]} Nf6 {[%emt 0:00:05]} 4. Bg5 {[%emt 0:00:06]} Be7 {[%emt 0:00:07]} 5. e3 {[%emt 0:00:04]} O-O {[%emt 0:00:34]} 6. Nf3 {[%emt 0:00:12]} b6 {[%emt 0:00:17]} 7. cxd5 {[%emt 0:01:03]} Nxd5 {[%emt 0:00:07]} 8. Bxe7 {[%emt 0:00:26]} Qxe7 {[%emt 0:00:07]} 9. Nxd5 {[%emt 0:00:48]} exd5 {[%emt 0:00:06]} 10. Rc1 {[%emt 0:00:24]} Be6 {[%emt 0:01:25]} 11. Bd3 {[%emt 0:06:02]} h6 {[%emt 0:02:54] D55: Damegambiet Geweigerd: 4 Lg5 Le7: Varianten zonder ...h6 en 6...h6 7 Lxf6.} 12. O-O {[%emt 0:06:21]} c5 {[%emt 0:01:21] Beste (Gemakkelijk)} 13. e4 {[%emt 0:04:06] Dreigt te winnen met dxc5. Onnauwkeurig} (13. Ne5 $5) 13... Nd7 {[%emt 0:08:45] OK. De stelling is in evenwicht.} 14. Re1 {[%emt 0:00:45] OK} Qd8 {[%emt 0:28:44]} 15. dxc5 $146 {[%emt 0:12:03] OK} ({Predecessor:} 15. e5 Rc8 16. Bb1 Re8 17. Qd3 Nf8 18. g3 Qe7 19. Nh4 cxd4 20. Qxd4 Rc4 21. Rxc4 dxc4 {½-½ Hurme,H (2255)-Nokso Koivisto,A FIN-chT Finland 1989}) 15... Nxc5 {[%emt 0:00:23]} 16. e5 {[%emt 0:00:07] OK} Bg4 {[%emt 0:20:26] OK} 17. Bb1 {[%emt 0:00:34]} Re8 {[%emt 0:04:46] OK} 18. Qc2 {[%emt 0:24:25] Fout (0.8)} (18. h3 $14 Bxf3 19. Qxf3) 18... g6 {[%emt 0:14:32] [#] ...Bxf3 is de sterke dreiging. Onnauwkeurig} 19. Nd4 {[%emt 0:00:06] Onnauwkeurig} Qg5 {[%emt 0:00:30][%cal Oa8c8] Ontwijkt Qd2. OK} 20. f3 {[%emt 0:11:36] h4 zou dodelijk zijn. OK} Bd7 $1 {[%emt 0:00:48][%cal Re8e5] Sterk} 21. b4 {[%emt 0:01:25] blijft gelijk. Fout (1.1)} (21. Qe2 $1 $11) 21... Ne6 $17 {[%emt 0:04:31] Beste (Gemakkelijk)} 22. Nxe6 {[%emt 0:00:31] OK} Rxe6 {[%emt 0:02:07]} 23. h4 {[%emt 0:10:38] OK} Qxh4 {[%emt 0:01:37] Zwart is actiever.} 24. Qd2 {[%emt 0:00:08] OK} Rc8 {[%emt 0:02:59] Stopt Rc7. Beste (Gemakkelijk)} 25. f4 {[%emt 0:11:54]} Rxc1 {[%emt 0:00:47]} 26. Rxc1 {[%emt 0:00:03]} Rc6 {[%emt 0:00:19] OK} 27. Rf1 {[%emt 0:04:27] OK} Be6 {[%emt 0:00:30] OK} 28. a3 {[%emt 0:00:17]} Qg3 {[%emt 0:01:20]} 29. Rf3 {[%emt 0:00:12] Voorkomt Rc3. OK} Qg4 {[%emt 0:00:07]} 30. b5 {[%emt 0:04:03] OK} Rc5 {[%emt 0:00:35]} 31. f5 {[%emt 0:00:32] Beste} Bxf5 {[%emt 0:03:30]} (31... Rxb5 $2 32. Bd3 Qd4+ 33. Qf2 Qa1+ (33... Qxe5 $2 {te hebberig.} 34. fxe6 $18) 34. Qf1 Qd4+ (34... Qxe5 $2 35. fxe6 Rc5 36. Bxg6 $18) 35. Kh1 Bxf5 (35... Qh4+ $2 36. Rh3 $18) 36. Bxb5 $16) (31... gxf5 $5 {is complexer.} 32. Qxh6 Rc4 33. Kh2 Qh4+) 32. Bxf5 {[%emt 0:00:03]} gxf5 {[%emt 0:00:04][%mdl 4096] Eindspel. KQR-KQR} 33. e6 $2 {[%emt 0:02:34] was een poging waard. Verliest de partij. Verliest partij (2.0)} (33. Qxh6 $17 Rc2 (33... Rxb5 $2 34. Kh2 $18) 34. Rf2) 33... fxe6 $19 {[%emt 0:00:57] Beste (Gemakkelijk)} (33... Rxb5 $2 34. e7 (34. Qxh6 Rb1+ 35. Kh2 Qg6 $18) 34... Rb1+ 35. Kf2 $18) 34. Qxh6 {[%emt 0:00:10] OK} Kf7 {[%emt 0:00:24][%cal Og4g7] [#] met als doel voor ...Qg7! OK} (34... Rxb5 $2 {vergaat.} 35. Qxe6+ Kg7 36. Qe5+ (36. Qxf5 Qxf5 37. Rxf5 Kg6 $17) (36. Qd7+ Kf6 $18) 36... Kh6 37. Qe3+ (37. Rxf5 Rb1+ 38. Rf1 Rxf1+ 39. Kxf1 Qc4+ 40. Kf2 Kg6 $11) 37... Kg6 38. Rg3 $18 (38. Qe8+ Kf6 $18) (38. Qe8+ Kf6 $18)) 35. Kh2 $2 {[%emt 0:01:01] noodzakelijke zet. Fout (2.5)} (35. Re3 f4 (35... Rxb5 $2 36. Qxe6+ Kg7 37. Qe7+ Kg8 38. Qe8+ Kh7 39. Re7+ Kh6 40. Re6+ Kg5 41. Rg6+ Kf4 42. Rxg4+ fxg4 43. Qxb5 $18) (35... Rc1+ $2 36. Kh2 $19) 36. Rf3) 35... Rc4 {[%emt 0:00:54] OK} (35... Rxb5 $2 {verliest.} 36. Rg3 $18) 36. Qh7+ {[%emt 0:00:21]} Kf6 {[%emt 0:00:17] En nu zou ...Qh4+ winnen.} 37. Qd7 {[%emt 0:00:42] Fout (2.5)} (37. Qh6+ $142 Kf7 38. Qh7+ Qg7 39. Qh5+ Ke7 40. Re3) 37... Qh4+ {[%emt 0:00:22] OK} 38. Rh3 {[%emt 0:00:02] Beste} Qf4+ {[%emt 0:00:07]} 39. Rg3 {[%emt 0:00:03][%csl Gg3][%cal Rd7g7]} Qc7 {[%emt 0:00:40]} 40. Qe8 {[%emt 0:00:35]} Rh4+ {[%emt 0:00:31] Zwart zet mat.} 41. Kg1 {[%emt 0:30:02]} Qc1+ {[%emt 0:30:31]} 42. Kf2 {[%emt 0:00:03]} Qd2+ {[%emt 0:00:04] Blunder waarde: Wit=0.56/Zwart=0.10 (erg precies) .  Verliest partij:   	Wit=1      	---        Fout:        	Wit=4      	---        Onnauwkeurig:    	Wit=2      	Zwart=1      OK:         	Wit=11     	Zwart=9      Beste:        	Wit=2      	Zwart=4      Sterk:        	---       	Zwart=1} 0-1

[Event "Serbian League Women 2024"]
[Site "Bajina Basta"]
[Date "2024.10.03"]
[Round "7.18"]
[White "Prudnikova, Svetlana"]
[Black "Zimina, Olga"]
[Result "1/2-1/2"]
[ECO "D11"]
[WhiteElo "2117"]
[BlackElo "2302"]
[Annotator "RC"]
[PlyCount "77"]
[EventDate "2024.09.26"]
[EventType "team-tourn"]
[EventCountry "SRB"]
[SourceTitle "playchess.com"]
[Source "ChessBase"]
[SourceQuality "1"]
[TimeControl "40/5400+30:1800+30"]

1. d4 {[%emt 0:00:02]} d5 {[%emt 0:00:13]} 2. c4 {[%emt 0:00:17]} c6 {[%emt 0:00:05]} 3. Nf3 {[%emt 0:00:15]} Nf6 {[%emt 0:00:06]} 4. e3 {[%emt 0:00:35]} a6 {[%emt 0:00:39]} 5. Bd3 {[%emt 0:00:59]} Bg4 {[%emt 0:04:34]} 6. Nbd2 {[%emt 0:03:06]} Nbd7 {[%emt 0:01:23]} 7. h3 {[%emt 0:01:08]} Bh5 {[%emt 0:00:51]} 8. Qc2 {[%emt 0:02:22]} e6 {[%emt 0:00:50]} 9. O-O {[%emt 0:06:05]} Bd6 {[%emt 0:01:15]} 10. b3 {[%emt 0:01:23]} O-O {[%emt 0:05:56]} 11. Ng5 {[%emt 0:09:57]} Bg6 {[%emt 0:02:55]} 12. Bxg6 {[%emt 0:00:08]} hxg6 {[%emt 0:00:04]} 13. e4 {[%emt 0:01:32]} Bf4 {[%emt 0:03:52]} 14. Ngf3 {[%emt 0:01:22]} e5 {[%emt 0:03:47]} 15. Bb2 {[%emt 0:08:14]} dxe4 {[%emt 0:06:46]} 16. Nxe5 {[%emt 0:09:41]} e3 {[%emt 0:06:58]} 17. Nxd7 {[%emt 0:19:34]} Qxd7 {[%emt 0:01:48]} 18. Ne4 {[%emt 0:01:06]} Nh5 {[%emt 0:17:14]} 19. Rae1 {[%emt 0:11:34]} exf2+ {[%emt 0:07:34]} 20. Qxf2 {[%emt 0:00:43]} Bc7 {[%emt 0:05:30]} 21. Ba3 {[%emt 0:04:32]} Rfe8 {[%emt 0:02:55]} 22. Nc5 {[%emt 0:07:45]} Qd6 {[%emt 0:02:42]} 23. Rxe8+ {[%emt 0:00:27]} Rxe8 {[%emt 0:00:06]} 24. Qxf7+ {[%emt 0:00:13]} Kh7 {[%emt 0:00:05]} 25. Qxe8 {[%emt 0:00:25]} Qh2+ {[%emt 0:20:09]} 26. Kf2 {[%emt 0:00:01]} Bg3+ {[%emt 0:00:06]} 27. Kf3 {[%emt 0:00:36]} Nf4 {[%emt 0:00:04]} 28. Rf2 {[%emt 0:04:18]} Bxf2 {[%emt 0:01:10]} 29. Kxf2 {[%emt 0:00:04]} Qxg2+ {[%emt 0:00:05]} 30. Ke1 {[%emt 0:00:01]} Qg1+ {[%emt 0:00:09]} 31. Kd2 {[%emt 0:00:15]} Qf2+ {[%emt 0:02:39]} 32. Kd1 {[%emt 0:00:58]} Qxd4+ {[%emt 0:00:24]} 33. Kc2 {[%emt 0:00:10]} b6 {[%emt 0:01:34]} 34. Ne4 {[%emt 0:01:36]} Qd3+ {[%emt 0:00:12]} 35. Kb2 {[%emt 0:00:11]} Qd4+ {[%emt 0:01:46]} 36. Kb1 {[%emt 0:00:21]} Qd3+ {[%emt 0:00:11]} 37. Kb2 {[%emt 0:00:07]} Qd4+ {[%emt 0:00:40]} 38. Kb1 {[%emt 0:00:09]} Qd3+ {[%emt 0:00:23]} 39. Kb2 {[%emt 0:00:09]} 1/2-1/2